[Event "*** Titled Tuesday 3|2 Blitz"]
[Site "Chess.com"]
[Date "2016.04.05"]
[Round "1"]
[White "Jungle_Jaguar"]
[Black "yurisolo"]
[Result "0-1"]
[WhiteElo "2219"]
[BlackElo "2540"]
[TimeControl "180+2"]
[EndTime "11:09:59 PDT"]
[Termination "yurisolo won by checkmate"]

1. d4 {[%clk 0:02:53.2]} 1... d5 {[%clk 0:03:00.6]} 2. c4 {[%clk 0:02:53.7]}
2... e6 {[%clk 0:03:01.9]} 3. Nc3 {[%clk 0:02:54.4]} 3... c6 {[%clk 0:03:03.3]}
4. Nf3 {[%clk 0:02:53.7]} 4... Nf6 {[%clk 0:03:04.3]} 5. e3 {[%clk 0:02:49.4]}
5... Nbd7 {[%clk 0:03:05.8]} 6. Qc2 {[%clk 0:02:50.4]} 6... Bd6 {[%clk
0:03:07.2]} 7. Bd3 {[%clk 0:02:51.1]} 7... e5 {[%clk 0:03:08.1]} 8. dxe5 {[%clk
0:02:49.4]} 8... Nxe5 {[%clk 0:03:10]} 9. Nxe5 {[%clk 0:02:45.1]} 9... Bxe5
{[%clk 0:03:11.9]} 10. cxd5 {[%clk 0:02:46.2]} 10... Nxd5 {[%clk 0:03:12.1]} 11.
Nxd5 {[%clk 0:02:43.2]} 11... Qxd5 {[%clk 0:03:14]} 12. Be4 {[%clk 0:02:44]}
12... Qb5 {[%clk 0:03:01.3]} 13. Bd3 {[%clk 0:02:39.6]} 13... Qb4+ {[%clk
0:03:01.1]} 14. Qd2 {[%clk 0:02:39.6]} 14... Qe7 {[%clk 0:02:43.7]} 15. Qc2
{[%clk 0:02:34.6]} 15... Qb4+ {[%clk 0:02:37.3]} 16. Qd2 {[%clk 0:02:34.9]}
16... Qd6 {[%clk 0:02:24.4]} 17. Qc2 {[%clk 0:02:25.1]} 17... Be6 {[%clk
0:02:24.1]} 18. Bd2 {[%clk 0:02:13]} 18... Rd8 {[%clk 0:01:50.5]} 19. Be4 {[%clk
0:01:57.6]} 19... O-O {[%clk 0:01:37.5]} 20. Bxh7+ {[%clk 0:01:48.9]} 20... Kh8
{[%clk 0:01:38.7]} 21. Be4 {[%clk 0:01:48.9]} 21... f5 {[%clk 0:01:19.3]} 22.
Bf3 {[%clk 0:01:46.2]} 22... Bc4 {[%clk 0:01:20.8]} 23. Bc3 {[%clk 0:01:29.3]}
23... Bd3 {[%clk 0:01:18.2]} 24. Bxe5 {[%clk 0:01:26.5]} 24... Qxe5 {[%clk
0:01:20]} 25. Qc3 {[%clk 0:01:27.6]} 25... Qe6 {[%clk 0:01:15.4]} 26. O-O-O
{[%clk 0:01:09.9]} 26... Qxa2 {[%clk 0:01:07]} 27. Rxd3 {[%clk 0:01:06.6]} 27...
Qa1+ {[%clk 0:01:08.2]} 28. Kc2 {[%clk 0:01:04.9]} 28... Qxh1 {[%clk 0:01:08.6]}
29. Rxd8 {[%clk 0:00:53.3]} 29... Rxd8 {[%clk 0:01:10.5]} 30. Qe5 {[%clk
0:00:54]} 30... Qe1 {[%clk 0:01:02.8]} 31. Qe7 {[%clk 0:00:41.8]} 31... Qxf2+
{[%clk 0:01:03.1]} 32. Kb3 {[%clk 0:00:40.4]} 32... Qd2 {[%clk 0:00:53.6]} 33.
Qh4+ {[%clk 0:00:33.5]} 33... Kg8 {[%clk 0:00:54.2]} 34. Qc4+ {[%clk 0:00:34.8]}
34... Kf8 {[%clk 0:00:52.6]} 35. Qc5+ {[%clk 0:00:35.5]} 35... Qd6 {[%clk
0:00:50]} 36. Qxf5+ {[%clk 0:00:36.6]} 36... Qf6 {[%clk 0:00:48.7]} 37. Qc5+
{[%clk 0:00:35.3]} 37... Qe7 {[%clk 0:00:45.3]} 38. Qc2 {[%clk 0:00:20]} 38...
Qxe3+ {[%clk 0:00:44.5]} 39. Ka2 {[%clk 0:00:20.8]} 39... Qe6+ {[%clk
0:00:43.7]} 40. Ka3 {[%clk 0:00:21.6]} 40... Rd4 {[%clk 0:00:32.7]} 41. Qh7
{[%clk 0:00:14.5]} 41... Qe7+ {[%clk 0:00:19.8]} 42. Ka2 {[%clk 0:00:15.2]}
42... Qf7+ {[%clk 0:00:20.6]} 43. Ka3 {[%clk 0:00:16.1]} 43... Qf6 {[%clk
0:00:19.8]} 44. Qh8+ {[%clk 0:00:16.1]} 44... Ke7 {[%clk 0:00:21.2]} 45. Qc8
{[%clk 0:00:16.2]} 45... Qd6+ {[%clk 0:00:20.7]} 46. Ka2 {[%clk 0:00:17.1]}
46... Qe6+ {[%clk 0:00:22]} 47. Qxe6+ {[%clk 0:00:17.6]} 47... Kxe6 {[%clk
0:00:23.9]} 48. h3 {[%clk 0:00:17.1]} 48... Kd6 {[%clk 0:00:23]} 49. Kb3 {[%clk
0:00:18.4]} 49... b5 {[%clk 0:00:23.6]} 50. Kc3 {[%clk 0:00:19.7]} 50... Rc4+
{[%clk 0:00:24.9]} 51. Kb3 {[%clk 0:00:20]} 51... a5 {[%clk 0:00:26.2]} 52. h4
{[%clk 0:00:20.5]} 52... a4+ {[%clk 0:00:27.5]} 53. Ka3 {[%clk 0:00:20.6]} 53...
Rxh4 {[%clk 0:00:29.2]} 54. g4 {[%clk 0:00:20.3]} 54... Rh3 {[%clk 0:00:30.1]}
55. Ka2 {[%clk 0:00:22]} 55... Rxf3 {[%clk 0:00:30.7]} 56. g5 {[%clk 0:00:23.9]}
56... Kc5 {[%clk 0:00:31.6]} 57. g6 {[%clk 0:00:25.8]} 57... Kb4 {[%clk
0:00:32.5]} 58. b3 {[%clk 0:00:25.3]} 58... Rf2+ {[%clk 0:00:32.2]} 59. Ka1
{[%clk 0:00:27.2]} 59... Kxb3 {[%clk 0:00:32.2]} 60. Kb1 {[%clk 0:00:28.6]}
60... Rf1# {[%clk 0:00:34.1]} 0-1

[Event "*** Titled Tuesday 3|2 Blitz"]
[Site "Chess.com"]
[Date "2016.04.05"]
[Round "1"]
[White "Bentery"]
[Black "zvonokchess1996"]
[Result "0-1"]
[WhiteElo "2311"]
[BlackElo "2608"]
[TimeControl "180+2"]
[EndTime "11:10:18 PDT"]
[Termination "zvonokchess1996 won by resignation"]

1. Nf3 {[%clk 0:03:01.9]} 1... Nf6 {[%clk 0:03:00.7]} 2. g3 {[%clk 0:03:03.1]}
2... g6 {[%clk 0:02:59.8]} 3. b3 {[%clk 0:03:04.1]} 3... Bg7 {[%clk 0:03:01.7]}
4. Bb2 {[%clk 0:03:05.8]} 4... O-O {[%clk 0:03:03.4]} 5. Bg2 {[%clk 0:03:07.4]}
5... c5 {[%clk 0:03:04.6]} 6. c4 {[%clk 0:03:08.5]} 6... Nc6 {[%clk 0:03:05.6]}
7. O-O {[%clk 0:03:09.5]} 7... d6 {[%clk 0:02:59.1]} 8. d4 {[%clk 0:03:10.4]}
8... cxd4 {[%clk 0:02:55.4]} 9. Nxd4 {[%clk 0:03:12.3]} 9... Bd7 {[%clk
0:02:57.2]} 10. Nc2 {[%clk 0:03:13.4]} 10... Qa5 {[%clk 0:02:56.7]} 11. Nc3
{[%clk 0:03:09.2]} 11... Qh5 {[%clk 0:02:51.6]} 12. Nd5 {[%clk 0:03:00.1]} 12...
Ng4 {[%clk 0:02:41]} 13. h3 {[%clk 0:02:59.7]} 13... Bxb2 {[%clk 0:02:41.1]} 14.
hxg4 {[%clk 0:02:53]} 14... Bxg4 {[%clk 0:02:41.5]} 15. f3 {[%clk 0:02:52.4]}
15... Be6 {[%clk 0:02:17.8]} 16. Rb1 {[%clk 0:02:50.6]} 16... Bg7 {[%clk
0:02:05.3]} 17. Kf2 {[%clk 0:02:30.6]} 17... Bxd5 {[%clk 0:02:00.2]} 18. cxd5
{[%clk 0:02:30.5]} 18... Ne5 {[%clk 0:02:01.4]} 19. Ne3 {[%clk 0:02:22]} 19...
Nd7 {[%clk 0:01:17.8]} 20. f4 {[%clk 0:02:19.3]} 20... g5 {[%clk 0:00:45.4]} 21.
Qd3 {[%clk 0:02:02.5]} 21... gxf4 {[%clk 0:00:38]} 22. Nf5 {[%clk 0:01:28.1]}
22... Nc5 {[%clk 0:00:28.6]} 23. Qc2 {[%clk 0:01:06.2]} 23... fxg3+ {[%clk
0:00:22.4]} 24. Ke1 {[%clk 0:01:06.4]} 24... Bf6 {[%clk 0:00:13.3]} 25. b4
{[%clk 0:00:57.6]} 25... Nd7 {[%clk 0:00:13.3]} 26. Rh1 {[%clk 0:00:55.1]} 26...
Qg6 {[%clk 0:00:13.4]} 27. Rh6 {[%clk 0:00:56.1]} 27... Rac8 {[%clk 0:00:11.1]}
28. Qe4 {[%clk 0:00:45.7]} 28... Ne5 {[%clk 0:00:08.5]} 29. Rxg6+ {[%clk
0:00:46.1]} 29... fxg6 {[%clk 0:00:09.9]} 30. Nd4 {[%clk 0:00:46.8]} 30... Rc4
{[%clk 0:00:10.2]} 31. e3 {[%clk 0:00:47.1]} 31... Rfc8 {[%clk 0:00:10.6]} 32.
Bh3 {[%clk 0:00:45.9]} 32... Rc1+ {[%clk 0:00:09.2]} 33. Rxc1 {[%clk 0:00:44]}
33... Rxc1+ {[%clk 0:00:11.1]} 34. Kd2 {[%clk 0:00:45.2]} 34... Ra1 {[%clk
0:00:10.3]} 35. Nf3 {[%clk 0:00:32.8]} 35... Rxa2+ {[%clk 0:00:10.7]} 36. Kd1
{[%clk 0:00:34.3]} 36... g2 {[%clk 0:00:08.9]} 37. Bxg2 {[%clk 0:00:34.9]} 37...
Rxg2 {[%clk 0:00:10.4]} 38. Nxe5 {[%clk 0:00:34.2]} 38... Rg1+ {[%clk
0:00:11.7]} 39. Ke2 {[%clk 0:00:35.4]} 39... Bxe5 {[%clk 0:00:13.6]} 40. Qc4
{[%clk 0:00:36.6]} 40... Rg2+ {[%clk 0:00:12.1]} 41. Kf3 {[%clk 0:00:35.8]}
41... Rb2 {[%clk 0:00:10.4]} 42. Qc8+ {[%clk 0:00:35.2]} 42... Kg7 {[%clk
0:00:11.6]} 43. Qxb7 {[%clk 0:00:35.9]} 43... Bf6 {[%clk 0:00:11.8]} 44. b5
{[%clk 0:00:36.3]} 44... h5 {[%clk 0:00:09.1]} 45. e4 {[%clk 0:00:34.5]} 45...
h4 {[%clk 0:00:09.4]} 46. e5 {[%clk 0:00:34.8]} 46... Rb3+ {[%clk 0:00:07.5]}
47. Kg2 {[%clk 0:00:31.4]} 47... Rb2+ {[%clk 0:00:05.9]} 48. Kh3 {[%clk
0:00:32.1]} 48... Rb3+ {[%clk 0:00:06]} 49. Kh2 {[%clk 0:00:28.8]} 49... Bxe5+
{[%clk 0:00:06.6]} 50. Kh1 {[%clk 0:00:29.1]} 50... Bf6 {[%clk 0:00:06]} 51.
Qxa7 {[%clk 0:00:28.7]} 51... Rxb5 {[%clk 0:00:06.7]} 52. Qa8 {[%clk 0:00:29.6]}
52... Rb1+ {[%clk 0:00:07.1]} 53. Kg2 {[%clk 0:00:30.3]} 53... Rb3 {[%clk
0:00:08]} 54. Qa4 {[%clk 0:00:25.5]} 54... h3+ {[%clk 0:00:08.6]} 55. Kh1 {[%clk
0:00:26.1]} 55... Rc3 {[%clk 0:00:07.5]} 56. Qe4 {[%clk 0:00:23]} 56... Be5
{[%clk 0:00:07.8]} 57. Qe1 {[%clk 0:00:18.4]} 57... h2 {[%clk 0:00:06.8]} 58.
Kg2 {[%clk 0:00:18.2]} 58... Rg3+ {[%clk 0:00:07.4]} 0-1

[Event "*** Titled Tuesday 3|2 Blitz"]
[Site "Chess.com"]
[Date "2016.04.05"]
[Round "1"]
[White "Angry_Serb"]
[Black "salomez"]
[Result "1-0"]
[WhiteElo "2506"]
[BlackElo "2154"]
[TimeControl "180+2"]
[EndTime "11:10:24 PDT"]
[Termination "Angry_Serb won by resignation"]

1. d4 {[%clk 0:03:01.9]} 1... Nf6 {[%clk 0:03:00.6]} 2. Nc3 {[%clk 0:03:02.9]}
2... d5 {[%clk 0:03:00]} 3. Bf4 {[%clk 0:03:03.5]} 3... c6 {[%clk 0:02:53]} 4.
Qd2 {[%clk 0:03:04.1]} 4... g6 {[%clk 0:02:51.7]} 5. O-O-O {[%clk 0:03:03.2]}
5... Bg7 {[%clk 0:02:53.1]} 6. Bh6 {[%clk 0:03:04.2]} 6... O-O {[%clk
0:02:51.8]} 7. h4 {[%clk 0:03:00.5]} 7... Bxh6 {[%clk 0:02:41.5]} 8. Qxh6 {[%clk
0:03:00.2]} 8... Ng4 {[%clk 0:02:42.9]} 9. Qf4 {[%clk 0:03:01.4]} 9... Qd6
{[%clk 0:02:43.5]} 10. Qf3 {[%clk 0:02:55.9]} 10... Qf6 {[%clk 0:02:41.5]} 11.
Qxf6 {[%clk 0:02:50.9]} 11... exf6 {[%clk 0:02:32.2]} 12. Nh3 {[%clk 0:02:52]}
12... f5 {[%clk 0:02:28.7]} 13. e3 {[%clk 0:02:51.1]} 13... Be6 {[%clk
0:02:28.1]} 14. Kd2 {[%clk 0:02:40.5]} 14... Nd7 {[%clk 0:02:29]} 15. f3 {[%clk
0:02:42]} 15... Ngf6 {[%clk 0:02:25.1]} 16. Bd3 {[%clk 0:02:43.3]} 16... Nh5
{[%clk 0:02:23]} 17. Ne2 {[%clk 0:02:27.4]} 17... b6 {[%clk 0:02:21.9]} 18. Rhg1
{[%clk 0:02:25.7]} 18... c5 {[%clk 0:02:20.8]} 19. c3 {[%clk 0:02:27.2]} 19...
Rac8 {[%clk 0:02:15.7]} 20. Rdf1 {[%clk 0:02:08.5]} 20... Rfe8 {[%clk
0:02:13.7]} 21. g4 {[%clk 0:02:09.6]} 21... fxg4 {[%clk 0:02:13.8]} 22. fxg4
{[%clk 0:02:11.5]} 22... Nhf6 {[%clk 0:02:04.2]} 23. Nf2 {[%clk 0:02:08.8]}
23... Re7 {[%clk 0:01:25.7]} 24. Nf4 {[%clk 0:02:08.1]} 24... Rce8 {[%clk
0:01:21.7]} 25. g5 {[%clk 0:02:08.3]} 25... Ne4+ {[%clk 0:01:18.1]} 26. Bxe4
{[%clk 0:01:37.9]} 26... dxe4 {[%clk 0:01:18.6]} 27. Nxe4 {[%clk 0:01:39.8]}
27... Bxa2 {[%clk 0:01:05.7]} 28. Nd6 {[%clk 0:01:39.7]} 28... Ra8 {[%clk
0:00:59.5]} 29. c4 {[%clk 0:01:31.2]} 29... cxd4 {[%clk 0:00:57.1]} 30. exd4
{[%clk 0:01:33.1]} 30... b5 {[%clk 0:00:42.1]} 31. cxb5 {[%clk 0:01:04.1]} 31...
Nb6 {[%clk 0:00:43.5]} 32. Ra1 {[%clk 0:00:58.7]} 32... Be6 {[%clk 0:00:30.4]}
33. Ne4 {[%clk 0:00:56.5]} 33... Nc4+ {[%clk 0:00:29.9]} 34. Kc3 {[%clk
0:00:57.5]} 34... Rc8 {[%clk 0:00:29.1]} 35. Nc5 {[%clk 0:00:58.8]} 35... Nd6
{[%clk 0:00:25.2]} 36. Ra5 {[%clk 0:00:55.2]} 36... Kf8 {[%clk 0:00:11.7]} 37.
Rga1 {[%clk 0:00:53.7]} 37... Nb7 {[%clk 0:00:10.8]} 38. Rxa7 {[%clk 0:00:53.8]}
38... Nxc5 {[%clk 0:00:11.7]} 39. dxc5 {[%clk 0:00:37.5]} 39... Rxc5+ {[%clk
0:00:12.2]} 40. Kd3 {[%clk 0:00:38.4]} 40... Rxb5 {[%clk 0:00:09.9]} 41. Rxe7
{[%clk 0:00:34]} 41... Kxe7 {[%clk 0:00:10.4]} 42. Ra7+ {[%clk 0:00:35.5]} 42...
Bd7 {[%clk 0:00:11]} 43. b4 {[%clk 0:00:35.3]} 43... Rf5 {[%clk 0:00:12.5]} 44.
Ke4 {[%clk 0:00:35.1]} 44... Kd6 {[%clk 0:00:12.5]} 45. Nd3 {[%clk 0:00:34]}
45... Bc6+ {[%clk 0:00:13.4]} 46. Kd4 {[%clk 0:00:35.7]} 46... Rf1 {[%clk
0:00:11.9]} 47. Ra6 {[%clk 0:00:36.1]} 47... Kc7 {[%clk 0:00:12.2]} 48. Kc5
{[%clk 0:00:36.5]} 48... Rf5+ {[%clk 0:00:12]} 49. Kd4 {[%clk 0:00:36.9]} 49...
Rd5+ {[%clk 0:00:12.9]} 50. Kc4 {[%clk 0:00:36]} 50... Bb5+ {[%clk 0:00:08.2]}
51. Kxd5 {[%clk 0:00:36.9]} 51... Bxa6 {[%clk 0:00:09.8]} 52. Ne5 {[%clk
0:00:37]} 52... Bb7+ {[%clk 0:00:09.7]} 53. Kc5 {[%clk 0:00:37.4]} 53... Kd8
{[%clk 0:00:08.7]} 54. Nxf7+ {[%clk 0:00:38.3]} 54... Ke7 {[%clk 0:00:10.3]} 55.
Nd6 {[%clk 0:00:38.4]} 55... Bh1 {[%clk 0:00:10.4]} 56. b5 {[%clk 0:00:40.1]}
56... Kd7 {[%clk 0:00:10.9]} 57. b6 {[%clk 0:00:41.2]} 57... Bg2 {[%clk
0:00:09]} 58. Nf7 {[%clk 0:00:41.9]} 58... Kc8 {[%clk 0:00:08.2]} 59. Ne5 {[%clk
0:00:41.2]} 59... Kb7 {[%clk 0:00:08.9]} 60. Nd7 {[%clk 0:00:41.1]} 60... Be4
{[%clk 0:00:05.3]} 61. Nf6 {[%clk 0:00:39.8]} 61... Bb1 {[%clk 0:00:05.8]} 62.
Nxh7 {[%clk 0:00:41.2]} 62... Bf5 {[%clk 0:00:06.6]} 63. Nf6 {[%clk 0:00:42.3]}
63... Bb1 {[%clk 0:00:07.3]} 64. Ne8 {[%clk 0:00:40.7]} 64... Bf5 {[%clk
0:00:07.1]} 65. Nd6+ {[%clk 0:00:42.2]} 1-0

[Event "*** Titled Tuesday 3|2 Blitz"]
[Site "Chess.com"]
[Date "2016.04.05"]
[Round "1"]
[White "oskariot"]
[Black "EltajSafarli"]
[Result "0-1"]
[WhiteElo "2299"]
[BlackElo "2614"]
[TimeControl "180+2"]
[EndTime "11:10:43 PDT"]
[Termination "EltajSafarli won by checkmate"]

1. e4 {[%clk 0:02:59.9]} 1... c5 {[%clk 0:02:58.6]} 2. Nf3 {[%clk 0:02:59.2]}
2... e6 {[%clk 0:02:58.4]} 3. d4 {[%clk 0:03:00.1]} 3... cxd4 {[%clk 0:03:00.3]}
4. Nxd4 {[%clk 0:03:02]} 4... Nf6 {[%clk 0:03:01.9]} 5. Nc3 {[%clk 0:03:02.8]}
5... Nc6 {[%clk 0:03:03.4]} 6. Ndb5 {[%clk 0:03:00.3]} 6... Bc5 {[%clk
0:03:01.4]} 7. Bf4 {[%clk 0:03:00.3]} 7... O-O {[%clk 0:03:01.4]} 8. Bc7 {[%clk
0:03:01.8]} 8... Qe7 {[%clk 0:03:02.2]} 9. Bd6 {[%clk 0:03:03.4]} 9... Bxd6
{[%clk 0:03:03.5]} 10. Qxd6 {[%clk 0:03:05.3]} 10... Qd8 {[%clk 0:03:04.9]} 11.
Qc7 {[%clk 0:03:02.6]} 11... Qe7 {[%clk 0:03:05]} 12. Qd6 {[%clk 0:03:03.3]}
12... Qd8 {[%clk 0:03:05]} 13. Qc7 {[%clk 0:03:04]} 13... a6 {[%clk 0:02:57.7]}
14. Qxd8 {[%clk 0:03:03.8]} 14... Rxd8 {[%clk 0:02:59.6]} 15. Nd6 {[%clk
0:03:04.3]} 15... Ne8 {[%clk 0:03:00.3]} 16. O-O-O {[%clk 0:03:04.9]} 16... Kf8
{[%clk 0:02:55.9]} 17. f4 {[%clk 0:02:27.4]} 17... Nxd6 {[%clk 0:02:52.2]} 18.
Rxd6 {[%clk 0:02:28]} 18... Ke7 {[%clk 0:02:54.1]} 19. Rd2 {[%clk 0:02:23.7]}
19... b5 {[%clk 0:02:53.9]} 20. Be2 {[%clk 0:02:22.8]} 20... Bb7 {[%clk
0:02:53]} 21. Bf3 {[%clk 0:02:23.7]} 21... Rac8 {[%clk 0:02:51.1]} 22. Rhd1
{[%clk 0:02:24.6]} 22... Na5 {[%clk 0:02:46.6]} 23. a3 {[%clk 0:02:04.1]} 23...
Nc4 {[%clk 0:02:46.2]} 24. Rd3 {[%clk 0:02:05.3]} 24... d6 {[%clk 0:02:47]} 25.
Kb1 {[%clk 0:01:18.3]} 25... h6 {[%clk 0:02:21.7]} 26. h4 {[%clk 0:01:16.3]}
26... Rc5 {[%clk 0:02:17.7]} 27. Ka2 {[%clk 0:01:14.9]} 27... g5 {[%clk
0:02:08]} 28. b3 {[%clk 0:00:57.2]} 28... Nb6 {[%clk 0:01:58.4]} 29. e5 {[%clk
0:00:54.8]} 29... d5 {[%clk 0:01:54.9]} 30. fxg5 {[%clk 0:00:52.6]} 30... hxg5
{[%clk 0:01:56.8]} 31. h5 {[%clk 0:00:54.1]} 31... Nd7 {[%clk 0:01:54.8]} 32.
Re1 {[%clk 0:00:51.4]} 32... g4 {[%clk 0:01:49.2]} 33. Bd1 {[%clk 0:00:29.6]}
33... Rh8 {[%clk 0:01:44]} 34. Kb2 {[%clk 0:00:28.3]} 34... Rxh5 {[%clk
0:01:43.8]} 35. Bxg4 {[%clk 0:00:29.5]} 35... Rxe5 {[%clk 0:01:44.8]} 36. Rh1
{[%clk 0:00:30.3]} 36... Rg5 {[%clk 0:01:44.4]} 37. Bf3 {[%clk 0:00:31]} 37...
Ne5 {[%clk 0:01:44.7]} 38. Rd2 {[%clk 0:00:32.4]} 38... Rg3 {[%clk 0:01:42]} 39.
Rh8 {[%clk 0:00:32.9]} 39... Nxf3 {[%clk 0:01:39.7]} 40. gxf3 {[%clk 0:00:34.3]}
40... Rxf3 {[%clk 0:01:41.6]} 41. Rb8 {[%clk 0:00:34.2]} 41... Rfxc3 {[%clk
0:01:38.9]} 42. Rxb7+ {[%clk 0:00:35.2]} 42... Rc7 {[%clk 0:01:40.2]} 43. Rb6
{[%clk 0:00:36.7]} 43... R3c6 {[%clk 0:01:39.6]} 44. Rb8 {[%clk 0:00:37.7]}
44... Rc8 {[%clk 0:01:35]} 45. Rb7+ {[%clk 0:00:38.1]} 45... R8c7 {[%clk
0:01:36.6]} 46. Rb8 {[%clk 0:00:39.4]} 46... f5 {[%clk 0:01:37.7]} 47. Rh2
{[%clk 0:00:39.6]} 47... Kd6 {[%clk 0:01:36.6]} 48. Re8 {[%clk 0:00:38.1]} 48...
Re7 {[%clk 0:01:37]} 49. Rd8+ {[%clk 0:00:38.1]} 49... Kc7 {[%clk 0:01:37.8]}
50. Ra8 {[%clk 0:00:38]} 50... Kb7 {[%clk 0:01:34.7]} 51. Rhh8 {[%clk
0:00:39.1]} 51... e5 {[%clk 0:01:30.2]} 52. Rhb8+ {[%clk 0:00:37.9]} 52... Kc7
{[%clk 0:01:31.2]} 53. Ra7+ {[%clk 0:00:21.4]} 53... Kxb8 {[%clk 0:01:30.1]} 54.
Rxe7 {[%clk 0:00:23.3]} 54... e4 {[%clk 0:01:29.9]} 55. Rf7 {[%clk 0:00:23.8]}
55... e3 {[%clk 0:01:25.2]} 56. Rxf5 {[%clk 0:00:24]} 56... Re6 {[%clk
0:01:26.7]} 57. Rf1 {[%clk 0:00:21.4]} 57... d4 {[%clk 0:01:27.7]} 58. Kc1
{[%clk 0:00:21.4]} 58... Kc7 {[%clk 0:01:27.8]} 59. Rh1 {[%clk 0:00:16.8]} 59...
Kd6 {[%clk 0:01:29.1]} 60. Kd1 {[%clk 0:00:18]} 60... Rg6 {[%clk 0:01:28.2]} 61.
Ke2 {[%clk 0:00:15.6]} 61... Rg2+ {[%clk 0:01:24.5]} 62. Kd3 {[%clk 0:00:16.9]}
62... Ke5 {[%clk 0:01:21.6]} 63. Rh5+ {[%clk 0:00:16.7]} 63... Kf4 {[%clk
0:01:22.9]} 64. Kxd4 {[%clk 0:00:13.9]} 64... Rd2+ {[%clk 0:01:14.6]} 65. Kc3
{[%clk 0:00:14.6]} 65... Rd1 {[%clk 0:01:12.7]} 66. Rh2 {[%clk 0:00:10.9]} 66...
Kg3 {[%clk 0:01:11.3]} 67. Re2 {[%clk 0:00:06.9]} 67... Kf3 {[%clk 0:01:11.6]}
68. Rxe3+ {[%clk 0:00:05]} 68... Kxe3 {[%clk 0:01:12.2]} 69. Kb4 {[%clk
0:00:06.9]} 69... Kd4 {[%clk 0:01:13.2]} 70. c4 {[%clk 0:00:08.1]} 70... bxc4
{[%clk 0:01:13.5]} 71. bxc4 {[%clk 0:00:09.2]} 71... Rb1+ {[%clk 0:01:15.1]} 72.
Ka5 {[%clk 0:00:09.5]} 72... Kxc4 {[%clk 0:01:16.5]} 73. a4 {[%clk 0:00:11]}
73... Kc5 {[%clk 0:01:17.1]} 74. Kxa6 {[%clk 0:00:12.1]} 74... Rb4 {[%clk
0:01:17.4]} 75. a5 {[%clk 0:00:13.5]} 75... Kc6 {[%clk 0:01:18.2]} 76. Ka7
{[%clk 0:00:14.5]} 76... Rb5 {[%clk 0:01:17.9]} 77. a6 {[%clk 0:00:15.7]} 77...
Ra5 {[%clk 0:01:18.3]} 78. Kb8 {[%clk 0:00:16.6]} 78... Rxa6 {[%clk 0:01:20.2]}
79. Kc8 {[%clk 0:00:18.2]} 79... Ra8# {[%clk 0:01:22.1]} 0-1